[Event "Titled Tuesday Blitz June 27 Late 2023"]
[White "Rakitic2010"]
[Black "Ljukin, Sergei"]
[BlackFideId "14102200"]
[WhiteElo "2275"]
[BlackElo "2543"]
[Result "0-1"]
[Round "3"]
[TimeControl "180+2"]
[Date "2023.06.27"]
[WhiteClock "0:00:55"]
[BlackClock "0:00:29"]
[Board "126"]

1. e4 {[%clk 0:03:00]}  e6 {[%clk 0:03:00]} 2. d4 {[%clk 0:02:59]}  d5 {[%clk 0:03:00]} 3. Nc3 {[%clk 0:03:00]}  Bb4 {[%clk 0:03:00]} 4. e5 {[%clk 0:03:01]}  Ne7 {[%clk 0:03:00]} 5. a3 {[%clk 0:02:55]}  Bxc3+ {[%clk 0:03:00]} 6. bxc3 {[%clk 0:02:56]}  c5 {[%clk 0:03:00]} 7. Qg4 {[%clk 0:02:55]}  Qc7 {[%clk 0:03:00]} 8. Bd3 {[%clk 0:02:50]}  Qa5 {[%clk 0:02:59]} 9. Ne2 {[%clk 0:02:48]}  c4 {[%clk 0:02:58]} 10. Qxg7 {[%clk 0:02:39]}  Rg8 {[%clk 0:02:57]} 11. Qxh7 {[%clk 0:02:32]}  cxd3 {[%clk 0:02:57]} 12. cxd3 {[%clk 0:02:31]}  Nbc6 {[%clk 0:02:51]} 13. h4 {[%clk 0:02:26]}  Bd7 {[%clk 0:02:51]} 14. Bd2 {[%clk 0:02:21]}  Qc7 {[%clk 0:02:36]} 15. c4 {[%clk 0:02:11]}  O-O-O {[%clk 0:02:33]} 16. Nc3 {[%clk 0:01:50]}  Nxd4 {[%clk 0:02:26]} 17. Rc1 {[%clk 0:01:48]}  Qxe5+ {[%clk 0:02:02]} 18. Be3 {[%clk 0:01:43]}  Nb3 {[%clk 0:02:02]} 19. d4 {[%clk 0:01:30]}  Qf5 {[%clk 0:01:27]} 20. Qxf5 {[%clk 0:01:25]}  Nxf5 {[%clk 0:01:27]} 21. Rb1 {[%clk 0:01:20]}  dxc4 {[%clk 0:01:19]} 22. Bg5 {[%clk 0:01:12]}  Rdf8 {[%clk 0:01:13]} 23. d5 {[%clk 0:01:12]}  f6 {[%clk 0:01:08]} 24. Bf4 {[%clk 0:01:08]}  e5 {[%clk 0:01:06]} 25. Bh2 {[%clk 0:01:07]}  Nd6 {[%clk 0:00:43]} 26. O-O {[%clk 0:01:03]}  Nd4 {[%clk 0:00:40]} 27. f3 {[%clk 0:01:01]}  Rh8 {[%clk 0:00:37]} 28. Bg3 {[%clk 0:00:59]}  Rfg8 {[%clk 0:00:32]} 29. Bf2 {[%clk 0:00:58]}  Nxf3+ {[%clk 0:00:32]} 30. Kh1 {[%clk 0:00:57]}  Nxh4 {[%clk 0:00:32]} 31. Bg3 {[%clk 0:00:55]}  Nf3+ {[%clk 0:00:30]} 32. Bh4 {[%clk 0:00:55]}  Rxh4# {[%clk 0:00:29]} 0-1


[Site "https://www.chess.com"]

[Event "Titled Tuesday Blitz June 27 Late 2023"]
[White "Kornyukov, Alexey"]
[Black "Jimenez Almeida, Luis David"]
[WhiteFideId "4150457"]
[BlackFideId "22242244"]
[WhiteElo "2230"]
[BlackElo "2536"]
[Result "0-1"]
[Round "3"]
[TimeControl "180+2"]
[Date "2023.06.27"]
[WhiteClock "0:00:00"]
[BlackClock "0:02:21"]
[Board "132"]

1. d4 {[%clk 0:00:31]}  g6 {[%clk 0:02:55]} 2. c4 {[%clk 0:00:30]}  Bg7 {[%clk 0:02:55]} 3. e4 {[%clk 0:00:30]}  c5 {[%clk 0:02:55]} 4. d5 {[%clk 0:00:30]}  b5 {[%clk 0:02:56]} 5. cxb5 {[%clk 0:00:29]}  a6 {[%clk 0:02:56]} 6. Nc3 {[%clk 0:00:26]}  d6 {[%clk 0:02:56]} 7. b6 {[%clk 0:00:25]}  Nd7 {[%clk 0:02:54]} 8. Nf3 {[%clk 0:00:23]}  Ngf6 {[%clk 0:02:53]} 9. Nd2 {[%clk 0:00:23]}  Qxb6 {[%clk 0:02:53]} 10. a4 {[%clk 0:00:23]}  O-O {[%clk 0:02:51]} 11. Be2 {[%clk 0:00:22]}  Qb4 {[%clk 0:02:43]} 12. a5 {[%clk 0:00:19]}  Ne8 {[%clk 0:02:41]} 13. Ra4 {[%clk 0:00:17]}  Qb7 {[%clk 0:02:41]} 14. h4 {[%clk 0:00:17]}  Nc7 {[%clk 0:02:37]} 15. h5 {[%clk 0:00:16]}  Nb5 {[%clk 0:02:33]} 16. hxg6 {[%clk 0:00:08]}  hxg6 {[%clk 0:02:30]} 17. Qc2 {[%clk 0:00:00]}  Ne5 {[%clk 0:02:21]} 0-1


[Site "https://www.chess.com"]

[Event "Titled Tuesday Blitz June 27 Late 2023"]
[White "Hambleton, Aman"]
[Black "Jiang, Andrew"]
[WhiteFideId "2606577"]
[BlackFideId "30953510"]
[WhiteElo "2702"]
[BlackElo "2445"]
[Result "1-0"]
[Round "3"]
[TimeControl "180+2"]
[Date "2023.06.27"]
[WhiteClock "0:00:03"]
[BlackClock "0:00:29"]
[Board "137"]

1. e4 {[%clk 0:03:00]}  e5 {[%clk 0:02:59]} 2. Nf3 {[%clk 0:02:44]}  Nc6 {[%clk 0:02:57]} 3. Bc4 {[%clk 0:02:43]}  Bc5 {[%clk 0:02:56]} 4. Bxf7+ {[%clk 0:02:41]}  Kxf7 {[%clk 0:02:54]} 5. Nxe5+ {[%clk 0:02:41]}  Nxe5 {[%clk 0:02:51]} 6. Qh5+ {[%clk 0:02:41]}  Ng6 {[%clk 0:02:33]} 7. Qd5+ {[%clk 0:02:41]}  Kf8 {[%clk 0:02:32]} 8. Qxc5+ {[%clk 0:02:41]}  d6 {[%clk 0:02:32]} 9. Qe3 {[%clk 0:02:41]}  Nf6 {[%clk 0:02:33]} 10. Nc3 {[%clk 0:02:42]}  Kf7 {[%clk 0:02:33]} 11. d3 {[%clk 0:02:22]}  Re8 {[%clk 0:02:29]} 12. O-O {[%clk 0:01:14]}  d5 {[%clk 0:02:25]} 13. Qg3 {[%clk 0:01:14]}  Be6 {[%clk 0:02:10]} 14. f4 {[%clk 0:01:00]}  dxe4 {[%clk 0:01:57]} 15. f5 {[%clk 0:00:52]}  Bxf5 {[%clk 0:01:54]} 16. Rxf5 {[%clk 0:00:53]}  exd3 {[%clk 0:01:55]} 17. cxd3 {[%clk 0:00:26]}  Qd4+ {[%clk 0:01:54]} 18. Kh1 {[%clk 0:00:18]}  h6 {[%clk 0:01:23]} 19. Bxh6 {[%clk 0:00:12]}  gxh6 {[%clk 0:01:23]} 20. Raf1 {[%clk 0:00:13]}  Re6 {[%clk 0:01:19]} 21. Ne4 {[%clk 0:00:09]}  Rae8 {[%clk 0:01:02]} 22. Nxf6 {[%clk 0:00:05]}  R8e7 {[%clk 0:00:40]} 23. Nd5+ {[%clk 0:00:05]}  Ke8 {[%clk 0:00:40]} 24. Nxe7 {[%clk 0:00:05]}  Nxe7 {[%clk 0:00:41]} 25. Rf8+ {[%clk 0:00:05]}  Kd7 {[%clk 0:00:41]} 26. R8f4 {[%clk 0:00:03]}  Qxb2 {[%clk 0:00:38]} 27. Rc4 {[%clk 0:00:03]}  c6 {[%clk 0:00:37]} 28. Qh3 {[%clk 0:00:02]}  Qe2 {[%clk 0:00:35]} 29. Rg1 {[%clk 0:00:03]}  b5 {[%clk 0:00:29]} 30. Re4 {[%clk 0:00:03]} 1-0


[Site "https://www.chess.com"]

[Event "Titled Tuesday Blitz June 27 Late 2023"]
[White "Mirzoev, Azer"]
[Black "Carrasco Miranda, Andres"]
[WhiteFideId "13400304"]
[BlackFideId "3405990"]
[WhiteElo "2675"]
[BlackElo "2412"]
[Result "1-0"]
[Round "3"]
[TimeControl "180+2"]
[Date "2023.06.27"]
[WhiteClock "0:00:57"]
[BlackClock "0:00:02"]
[Board "138"]

1. c4 {[%clk 0:03:00]}  Nf6 {[%clk 0:02:59]} 2. Nc3 {[%clk 0:03:01]}  g6 {[%clk 0:02:59]} 3. e4 {[%clk 0:03:01]}  e5 {[%clk 0:02:59]} 4. Nf3 {[%clk 0:02:59]}  Bg7 {[%clk 0:02:59]} 5. d4 {[%clk 0:02:53]}  exd4 {[%clk 0:02:58]} 6. Nxd4 {[%clk 0:02:54]}  O-O {[%clk 0:02:57]} 7. Bg5 {[%clk 0:02:54]}  h6 {[%clk 0:02:56]} 8. Bh4 {[%clk 0:02:54]}  Re8 {[%clk 0:02:56]} 9. f3 {[%clk 0:02:53]}  g5 {[%clk 0:02:52]} 10. Bf2 {[%clk 0:02:52]}  d5 {[%clk 0:02:52]} 11. cxd5 {[%clk 0:02:51]}  Nxd5 {[%clk 0:02:52]} 12. Bc4 {[%clk 0:02:45]}  Nxc3 {[%clk 0:02:48]} 13. bxc3 {[%clk 0:02:44]}  Nd7 {[%clk 0:02:37]} 14. O-O {[%clk 0:02:42]}  Ne5 {[%clk 0:02:37]} 15. Bb3 {[%clk 0:02:41]}  Ng6 {[%clk 0:02:35]} 16. Qc2 {[%clk 0:02:36]}  c5 {[%clk 0:02:20]} 17. Nf5 {[%clk 0:02:34]}  Bxf5 {[%clk 0:02:10]} 18. exf5 {[%clk 0:02:35]}  Nf4 {[%clk 0:02:10]} 19. Rad1 {[%clk 0:02:31]}  Qc7 {[%clk 0:02:09]} 20. Rfe1 {[%clk 0:02:14]}  c4 {[%clk 0:01:58]} 21. Ba4 {[%clk 0:02:07]}  Rxe1+ {[%clk 0:01:57]} 22. Rxe1 {[%clk 0:02:07]}  Nd3 {[%clk 0:01:54]} 23. Re4 {[%clk 0:01:55]}  a6 {[%clk 0:01:46]} 24. Qd2 {[%clk 0:01:51]}  b5 {[%clk 0:01:41]} 25. Bc2 {[%clk 0:01:50]}  Rd8 {[%clk 0:01:39]} 26. Bd4 {[%clk 0:01:23]}  Bxd4+ {[%clk 0:01:36]} 27. cxd4 {[%clk 0:01:24]}  Nf4 {[%clk 0:01:02]} 28. h4 {[%clk 0:01:23]}  c3 {[%clk 0:01:00]} 29. Qe3 {[%clk 0:01:10]}  Qc4 {[%clk 0:00:25]} 30. hxg5 {[%clk 0:01:08]}  hxg5 {[%clk 0:00:22]} 31. Bb3 {[%clk 0:01:06]}  Qd3 {[%clk 0:00:18]} 32. Re8+ {[%clk 0:01:02]}  Rxe8 {[%clk 0:00:14]} 33. Qxe8+ {[%clk 0:01:02]}  Kh7 {[%clk 0:00:12]} 34. Qxf7+ {[%clk 0:01:01]}  Kh6 {[%clk 0:00:12]} 35. Qf8+ {[%clk 0:01:00]}  Kh7 {[%clk 0:00:02]} 36. Bg8+ {[%clk 0:00:57]} 1-0


[Site "https://www.chess.com"]

[Event "Titled Tuesday Blitz June 27 Late 2023"]
[White "Tologon tegin, Semetei"]
[Black "Topalov, Aleksandar"]
[WhiteFideId "13800574"]
[BlackFideId "925659"]
[WhiteElo "2530"]
[BlackElo "2387"]
[Result "1-0"]
[Round "3"]
[TimeControl "180+2"]
[Date "2023.06.27"]
[WhiteClock "0:01:14"]
[BlackClock "0:00:23"]
[Board "140"]

1. g3 {[%clk 0:02:54]}  Nf6 {[%clk 0:02:58]} 2. Bg2 {[%clk 0:02:54]}  g6 {[%clk 0:02:58]} 3. e4 {[%clk 0:02:52]}  d6 {[%clk 0:02:58]} 4. d4 {[%clk 0:02:53]}  Bg7 {[%clk 0:02:57]} 5. Nc3 {[%clk 0:02:53]}  O-O {[%clk 0:02:57]} 6. Nge2 {[%clk 0:02:53]}  c5 {[%clk 0:02:57]} 7. O-O {[%clk 0:02:51]}  cxd4 {[%clk 0:02:56]} 8. Nxd4 {[%clk 0:02:51]}  Nc6 {[%clk 0:02:54]} 9. Nde2 {[%clk 0:02:42]}  a6 {[%clk 0:02:47]} 10. a4 {[%clk 0:02:41]}  Rb8 {[%clk 0:02:46]} 11. h3 {[%clk 0:02:38]}  b5 {[%clk 0:02:44]} 12. axb5 {[%clk 0:02:38]}  axb5 {[%clk 0:02:44]} 13. Be3 {[%clk 0:02:31]}  b4 {[%clk 0:02:43]} 14. Nd5 {[%clk 0:02:31]}  Nxd5 {[%clk 0:02:40]} 15. exd5 {[%clk 0:02:31]}  Ne5 {[%clk 0:02:38]} 16. Bd4 {[%clk 0:02:30]}  Nd7 {[%clk 0:01:40]} 17. Bxg7 {[%clk 0:02:20]}  Kxg7 {[%clk 0:01:41]} 18. Nd4 {[%clk 0:02:20]}  Bb7 {[%clk 0:01:38]} 19. Nc6 {[%clk 0:02:13]}  Bxc6 {[%clk 0:01:37]} 20. dxc6 {[%clk 0:02:14]}  Nc5 {[%clk 0:01:33]} 21. Ra7 {[%clk 0:02:07]}  Rb6 {[%clk 0:01:09]} 22. Re1 {[%clk 0:01:44]}  Ne6 {[%clk 0:01:04]} 23. Rd7 {[%clk 0:01:37]}  Qe8 {[%clk 0:00:52]} 24. Rxe6 {[%clk 0:01:32]}  fxe6 {[%clk 0:00:52]} 25. Qxd6 {[%clk 0:01:32]}  Kf7 {[%clk 0:00:44]} 26. h4 {[%clk 0:01:15]}  Kf6 {[%clk 0:00:27]} 27. Qd4+ {[%clk 0:01:13]}  e5 {[%clk 0:00:23]} 28. Qxb6 {[%clk 0:01:14]} 1-0


[Site "https://www.chess.com"]

[Event "Titled Tuesday Blitz June 27 Late 2023"]
[White "Luxama, Jacques Muller"]
[Black "Zavortink, Matt"]
[WhiteFideId "11900113"]
[BlackFideId "2034263"]
[WhiteElo "2231"]
[BlackElo "2486"]
[Result "1/2-1/2"]
[Round "3"]
[TimeControl "180+2"]
[Date "2023.06.27"]
[WhiteClock "0:00:12"]
[BlackClock "0:00:19"]
[Board "143"]

1. e4 {[%clk 0:03:00]}  c5 {[%clk 0:02:59]} 2. Nf3 {[%clk 0:02:59]}  e6 {[%clk 0:02:59]} 3. d4 {[%clk 0:02:57]}  cxd4 {[%clk 0:03:00]} 4. Nxd4 {[%clk 0:02:55]}  Nf6 {[%clk 0:03:00]} 5. Nc3 {[%clk 0:02:54]}  Nc6 {[%clk 0:03:00]} 6. Nxc6 {[%clk 0:02:54]}  bxc6 {[%clk 0:03:01]} 7. Bd3 {[%clk 0:02:53]}  d5 {[%clk 0:03:01]} 8. O-O {[%clk 0:02:53]}  Rb8 {[%clk 0:02:51]} 9. Re1 {[%clk 0:02:50]}  Be7 {[%clk 0:02:46]} 10. e5 {[%clk 0:02:45]}  Nd7 {[%clk 0:02:46]} 11. Qg4 {[%clk 0:02:41]}  g6 {[%clk 0:02:43]} 12. b3 {[%clk 0:02:25]}  Qa5 {[%clk 0:02:34]} 13. Bd2 {[%clk 0:01:55]}  Qc7 {[%clk 0:02:26]} 14. Qg3 {[%clk 0:01:47]}  a6 {[%clk 0:02:18]} 15. Na4 {[%clk 0:01:44]}  c5 {[%clk 0:02:12]} 16. c4 {[%clk 0:01:42]}  d4 {[%clk 0:02:06]} 17. h4 {[%clk 0:01:36]}  Bb7 {[%clk 0:01:25]} 18. h5 {[%clk 0:01:34]}  Bc6 {[%clk 0:01:21]} 19. Nb2 {[%clk 0:01:32]}  Nf8 {[%clk 0:01:08]} 20. Be4 {[%clk 0:01:18]}  Qb7 {[%clk 0:01:02]} 21. Bxc6+ {[%clk 0:01:16]}  Qxc6 {[%clk 0:01:03]} 22. Nd3 {[%clk 0:01:15]}  Nd7 {[%clk 0:00:56]} 23. Bg5 {[%clk 0:01:10]}  Bxg5 {[%clk 0:00:39]} 24. Qxg5 {[%clk 0:01:09]}  h6 {[%clk 0:00:37]} 25. Qg4 {[%clk 0:01:00]}  Rg8 {[%clk 0:00:36]} 26. Nf4 {[%clk 0:00:43]}  Nf8 {[%clk 0:00:31]} 27. hxg6 {[%clk 0:00:35]}  Nxg6 {[%clk 0:00:29]} 28. Nh5 {[%clk 0:00:31]}  Ke7 {[%clk 0:00:27]} 29. Nf6 {[%clk 0:00:22]}  Rg7 {[%clk 0:00:25]} 30. Nh5 {[%clk 0:00:13]}  Rgg8 {[%clk 0:00:20]} 31. Nf6 {[%clk 0:00:12]}  Rg7 {[%clk 0:00:19]} 32. Nh5 {[%clk 0:00:12]}  Rgg8 {[%clk 0:00:19]} 1/2-1/2


[Site "https://www.chess.com"]

[Event "Titled Tuesday Blitz June 27 Late 2023"]
[White "Bazzano, Sebastian"]
[Black "Baches Garcia, Guillermo"]
[WhiteFideId "104566"]
[BlackFideId "2209764"]
[WhiteElo "2212"]
[BlackElo "2476"]
[Result "1-0"]
[Round "3"]
[TimeControl "180+2"]
[Date "2023.06.27"]
[WhiteClock "0:00:15"]
[BlackClock "0:00:00"]
[Board "144"]

1. d4 {[%clk 0:03:00]}  d5 {[%clk 0:02:59]} 2. Bf4 {[%clk 0:02:59]}  c5 {[%clk 0:02:53]} 3. e4 {[%clk 0:02:58]}  dxe4 {[%clk 0:02:51]} 4. d5 {[%clk 0:02:58]}  g6 {[%clk 0:02:46]} 5. Nc3 {[%clk 0:02:49]}  Nf6 {[%clk 0:02:42]} 6. Qe2 {[%clk 0:02:44]}  Bg7 {[%clk 0:02:39]} 7. O-O-O {[%clk 0:02:43]}  O-O {[%clk 0:02:35]} 8. f3 {[%clk 0:02:39]}  exf3 {[%clk 0:02:27]} 9. Nxf3 {[%clk 0:02:40]}  Bg4 {[%clk 0:02:12]} 10. h3 {[%clk 0:02:38]}  Bxf3 {[%clk 0:02:09]} 11. Qxf3 {[%clk 0:02:39]}  Nbd7 {[%clk 0:02:09]} 12. g4 {[%clk 0:02:29]}  a6 {[%clk 0:02:08]} 13. Bg2 {[%clk 0:02:05]}  Qa5 {[%clk 0:01:33]} 14. Rhe1 {[%clk 0:01:39]}  Rfe8 {[%clk 0:01:32]} 15. d6 {[%clk 0:01:31]}  e5 {[%clk 0:01:28]} 16. Bg5 {[%clk 0:01:19]}  b5 {[%clk 0:01:24]} 17. Nd5 {[%clk 0:01:02]}  Qxa2 {[%clk 0:01:16]} 18. Nxf6+ {[%clk 0:00:50]}  Nxf6 {[%clk 0:01:12]} 19. Bxf6 {[%clk 0:00:49]}  Qa1+ {[%clk 0:01:06]} 20. Kd2 {[%clk 0:00:49]}  Qxb2 {[%clk 0:01:00]} 21. Bxg7 {[%clk 0:00:48]}  Kxg7 {[%clk 0:00:55]} 22. Qxa8 {[%clk 0:00:33]}  Rxa8 {[%clk 0:00:47]} 23. Bxa8 {[%clk 0:00:34]}  Qb4+ {[%clk 0:00:35]} 24. Ke2 {[%clk 0:00:29]}  Qc4+ {[%clk 0:00:25]} 25. Kf2 {[%clk 0:00:23]}  Qf4+ {[%clk 0:00:24]} 26. Kg1 {[%clk 0:00:17]}  f5 {[%clk 0:00:15]} 27. gxf5 {[%clk 0:00:16]}  gxf5 {[%clk 0:00:07]} 28. d7 {[%clk 0:00:16]}  e4 {[%clk 0:00:00]} 29. d8=Q {[%clk 0:00:15]} 1-0


[Site "https://www.chess.com"]

[Event "Titled Tuesday Blitz June 27 Late 2023"]
[White "Raahul V S"]
[Black "Rodriguez Santiago, Jaime"]
[WhiteFideId "25035525"]
[BlackFideId "3100898"]
[WhiteElo "2594"]
[BlackElo "2299"]
[Result "1-0"]
[Round "3"]
[TimeControl "180+2"]
[Date "2023.06.27"]
[WhiteClock "0:02:25"]
[BlackClock "0:00:11"]
[Board "148"]

1. b3 {[%clk 0:03:00]}  e5 {[%clk 0:01:09]} 2. Bb2 {[%clk 0:03:00]}  d6 {[%clk 0:01:08]} 3. c4 {[%clk 0:02:58]}  Nf6 {[%clk 0:01:08]} 4. d4 {[%clk 0:02:57]}  Be7 {[%clk 0:01:09]} 5. dxe5 {[%clk 0:02:57]}  dxe5 {[%clk 0:01:10]} 6. Qxd8+ {[%clk 0:02:58]}  Bxd8 {[%clk 0:01:11]} 7. Bxe5 {[%clk 0:02:59]}  O-O {[%clk 0:01:11]} 8. Nc3 {[%clk 0:02:58]}  Re8 {[%clk 0:01:12]} 9. Nf3 {[%clk 0:02:56]}  Nc6 {[%clk 0:01:12]} 10. Bf4 {[%clk 0:02:54]}  Nh5 {[%clk 0:01:02]} 11. Bd2 {[%clk 0:02:54]}  Nb4 {[%clk 0:00:56]} 12. O-O-O {[%clk 0:02:51]}  Bf6 {[%clk 0:00:50]} 13. a3 {[%clk 0:02:45]}  Bxc3 {[%clk 0:00:42]} 14. Bxc3 {[%clk 0:02:45]}  Na2+ {[%clk 0:00:43]} 15. Kb2 {[%clk 0:02:46]}  Nxc3 {[%clk 0:00:44]} 16. Kxc3 {[%clk 0:02:47]}  Nf6 {[%clk 0:00:42]} 17. Nd2 {[%clk 0:02:42]}  Bg4 {[%clk 0:00:35]} 18. f3 {[%clk 0:02:42]}  Bh5 {[%clk 0:00:34]} 19. e4 {[%clk 0:02:42]}  Rad8 {[%clk 0:00:32]} 20. Be2 {[%clk 0:02:42]}  Bg6 {[%clk 0:00:31]} 21. Nb1 {[%clk 0:02:41]}  Nd7 {[%clk 0:00:31]} 22. h4 {[%clk 0:02:40]}  h5 {[%clk 0:00:30]} 23. Rd4 {[%clk 0:02:38]}  c5 {[%clk 0:00:29]} 24. Rd5 {[%clk 0:02:38]}  b6 {[%clk 0:00:29]} 25. Rhd1 {[%clk 0:02:39]}  Re7 {[%clk 0:00:27]} 26. b4 {[%clk 0:02:36]}  Kf8 {[%clk 0:00:27]} 27. bxc5 {[%clk 0:02:33]}  bxc5 {[%clk 0:00:27]} 28. Rxc5 {[%clk 0:02:34]}  Ke8 {[%clk 0:00:26]} 29. Rc7 {[%clk 0:02:34]}  f5 {[%clk 0:00:24]} 30. exf5 {[%clk 0:02:32]}  Bxf5 {[%clk 0:00:22]} 31. Bd3 {[%clk 0:02:31]}  Re3 {[%clk 0:00:22]} 32. Kc2 {[%clk 0:02:26]}  Bxd3+ {[%clk 0:00:16]} 33. Rxd3 {[%clk 0:02:26]}  Re2+ {[%clk 0:00:17]} 34. Rd2 {[%clk 0:02:25]}  Re7 {[%clk 0:00:11]} 35. Nc3 {[%clk 0:02:25]} 1-0


[Site "https://www.chess.com"]

[Event "Titled Tuesday Blitz June 27 Late 2023"]
[White "Bullen, Alex"]
[Black "Bilan, Danila"]
[WhiteFideId "1801627"]
[BlackFideId "24161918"]
[WhiteElo "2290"]
[BlackElo "2506"]
[Result "0-1"]
[Round "3"]
[TimeControl "180+2"]
[Date "2023.06.27"]
[WhiteClock "0:00:03"]
[BlackClock "0:00:10"]
[Board "150"]

1. d4 {[%clk 0:03:00]}  d5 {[%clk 0:02:53]} 2. Nf3 {[%clk 0:03:01]}  Nf6 {[%clk 0:02:48]} 3. c4 {[%clk 0:03:01]}  c6 {[%clk 0:02:48]} 4. Qc2 {[%clk 0:03:00]}  e6 {[%clk 0:02:45]} 5. g3 {[%clk 0:03:00]}  Nbd7 {[%clk 0:02:43]} 6. Bg2 {[%clk 0:03:00]}  Bd6 {[%clk 0:02:43]} 7. O-O {[%clk 0:03:01]}  O-O {[%clk 0:02:43]} 8. Nbd2 {[%clk 0:03:01]}  e5 {[%clk 0:02:38]} 9. dxe5 {[%clk 0:02:56]}  Nxe5 {[%clk 0:02:39]} 10. cxd5 {[%clk 0:02:51]}  Nxd5 {[%clk 0:02:33]} 11. Nxe5 {[%clk 0:02:50]}  Bxe5 {[%clk 0:02:33]} 12. Nf3 {[%clk 0:02:49]}  Bf6 {[%clk 0:02:30]} 13. Rd1 {[%clk 0:02:46]}  Qb6 {[%clk 0:02:25]} 14. Rb1 {[%clk 0:02:35]}  Re8 {[%clk 0:02:03]} 15. Bg5 {[%clk 0:02:27]}  Nb4 {[%clk 0:01:37]} 16. Qd2 {[%clk 0:02:12]}  Bxg5 {[%clk 0:01:11]} 17. Nxg5 {[%clk 0:02:11]}  h6 {[%clk 0:01:03]} 18. Ne4 {[%clk 0:02:03]}  Bf5 {[%clk 0:00:59]} 19. Nd6 {[%clk 0:01:48]}  Bxb1 {[%clk 0:00:51]} 20. Nxe8 {[%clk 0:01:47]}  Bc2 {[%clk 0:00:36]} 21. Rc1 {[%clk 0:01:19]}  Rxe8 {[%clk 0:00:28]} 22. Rxc2 {[%clk 0:01:19]}  Nxc2 {[%clk 0:00:25]} 23. Qxc2 {[%clk 0:01:20]}  Qa6 {[%clk 0:00:20]} 24. e3 {[%clk 0:01:04]}  Qxa2 {[%clk 0:00:19]} 25. Bf1 {[%clk 0:01:03]}  Rd8 {[%clk 0:00:17]} 26. Bc4 {[%clk 0:01:01]}  Qa1+ {[%clk 0:00:18]} 27. Kg2 {[%clk 0:01:01]}  Qd1 {[%clk 0:00:19]} 28. Qf5 {[%clk 0:00:55]}  Qd7 {[%clk 0:00:19]} 29. Qa5 {[%clk 0:00:49]}  b5 {[%clk 0:00:19]} 30. Bb3 {[%clk 0:00:41]}  c5 {[%clk 0:00:19]} 31. e4 {[%clk 0:00:37]}  c4 {[%clk 0:00:19]} 32. Bc2 {[%clk 0:00:34]}  Rb8 {[%clk 0:00:19]} 33. f3 {[%clk 0:00:29]}  Rd8 {[%clk 0:00:17]} 34. Kg1 {[%clk 0:00:19]}  Qd2 {[%clk 0:00:17]} 35. Qc7 {[%clk 0:00:12]}  Qe1+ {[%clk 0:00:17]} 36. Kg2 {[%clk 0:00:12]}  Rd2+ {[%clk 0:00:17]} 37. Kh3 {[%clk 0:00:13]}  Qf1+ {[%clk 0:00:13]} 38. Kg4 {[%clk 0:00:11]}  h5+ {[%clk 0:00:13]} 39. Kf4 {[%clk 0:00:11]}  Qh3 {[%clk 0:00:11]} 40. Qb8+ {[%clk 0:00:08]}  Kh7 {[%clk 0:00:11]} 41. e5+ {[%clk 0:00:09]}  Rxc2 {[%clk 0:00:11]} 42. Qc8 {[%clk 0:00:03]}  Qxc8 {[%clk 0:00:10]} 0-1


[Site "https://www.chess.com"]

[Event "Titled Tuesday Blitz June 27 Late 2023"]
[White "Vovk, Orest"]
[Black "Kostiukov, Alexandr"]
[WhiteFideId "14113490"]
[BlackFideId "14108100"]
[WhiteElo "2494"]
[BlackElo "2281"]
[Result "1-0"]
[Round "3"]
[TimeControl "180+2"]
[Date "2023.06.27"]
[WhiteClock "0:02:13"]
[BlackClock "0:01:27"]
[Board "152"]

1. g4 {[%clk 0:02:55]}  e5 {[%clk 0:02:59]} 2. g5 {[%clk 0:02:54]}  Qxg5 {[%clk 0:02:53]} 3. d4 {[%clk 0:02:42]}  Qe7 {[%clk 0:02:49]} 4. dxe5 {[%clk 0:02:41]}  Qxe5 {[%clk 0:02:49]} 5. Nf3 {[%clk 0:02:41]}  Qa5+ {[%clk 0:02:42]} 6. Nc3 {[%clk 0:02:40]}  Nf6 {[%clk 0:02:39]} 7. Rg1 {[%clk 0:02:29]}  g6 {[%clk 0:02:25]} 8. Rg5 {[%clk 0:02:27]}  Qb6 {[%clk 0:02:17]} 9. Re5+ {[%clk 0:02:17]}  Be7 {[%clk 0:02:10]} 10. Bg5 {[%clk 0:02:17]}  h6 {[%clk 0:01:50]} 11. Rxe7+ {[%clk 0:02:15]}  Kxe7 {[%clk 0:01:44]} 12. Nd5+ {[%clk 0:02:14]}  Ke6 {[%clk 0:01:33]} 13. Nxb6 {[%clk 0:02:13]}  axb6 {[%clk 0:01:27]} 14. Bxf6 {[%clk 0:02:13]} 1-0


[Site "https://www.chess.com"]

[Event "Titled Tuesday Blitz June 27 Late 2023"]
[White "Osmak, Yuliia"]
[Black "Vaglio Munoz, Jaime"]
[WhiteFideId "14101602"]
[BlackFideId "6500145"]
[WhiteElo "2477"]
[BlackElo "2276"]
[Result "1-0"]
[Round "3"]
[TimeControl "180+2"]
[Date "2023.06.27"]
[WhiteClock "0:01:04"]
[BlackClock "0:01:24"]
[Board "154"]

1. d4 {[%clk 0:03:00]}  c6 {[%clk 0:02:45]} 2. c4 {[%clk 0:03:00]}  b5 {[%clk 0:02:46]} 3. c5 {[%clk 0:02:56]}  d5 {[%clk 0:02:45]} 4. Nf3 {[%clk 0:02:52]}  Bf5 {[%clk 0:02:43]} 5. Bf4 {[%clk 0:02:50]}  e6 {[%clk 0:02:43]} 6. e3 {[%clk 0:02:50]}  Nd7 {[%clk 0:02:43]} 7. Nbd2 {[%clk 0:02:48]}  Ngf6 {[%clk 0:02:42]} 8. Be2 {[%clk 0:02:47]}  h6 {[%clk 0:02:42]} 9. h3 {[%clk 0:02:48]}  Be7 {[%clk 0:02:41]} 10. O-O {[%clk 0:02:48]}  O-O {[%clk 0:02:41]} 11. a4 {[%clk 0:02:48]}  a6 {[%clk 0:02:41]} 12. Nb3 {[%clk 0:02:42]}  Ne4 {[%clk 0:02:37]} 13. Ra2 {[%clk 0:02:23]}  g5 {[%clk 0:02:34]} 14. Bh2 {[%clk 0:02:22]}  b4 {[%clk 0:02:30]} 15. a5 {[%clk 0:02:17]}  h5 {[%clk 0:02:26]} 16. Ne5 {[%clk 0:02:13]}  Nxe5 {[%clk 0:02:25]} 17. Bxe5 {[%clk 0:02:14]}  f6 {[%clk 0:02:24]} 18. Bh2 {[%clk 0:02:13]}  h4 {[%clk 0:02:20]} 19. Ra4 {[%clk 0:02:09]}  Kh7 {[%clk 0:02:03]} 20. Rxb4 {[%clk 0:02:09]}  Rg8 {[%clk 0:02:02]} 21. Rb6 {[%clk 0:02:02]}  Qd7 {[%clk 0:01:59]} 22. Qe1 {[%clk 0:01:55]}  e5 {[%clk 0:01:57]} 23. dxe5 {[%clk 0:01:51]}  g4 {[%clk 0:01:53]} 24. exf6 {[%clk 0:01:49]}  Bxf6 {[%clk 0:01:52]} 25. hxg4 {[%clk 0:01:50]}  Bxg4 {[%clk 0:01:52]} 26. f3 {[%clk 0:01:50]}  Bh3 {[%clk 0:01:50]} 27. fxe4 {[%clk 0:01:44]}  Rxg2+ {[%clk 0:01:49]} 28. Kh1 {[%clk 0:01:44]}  Rxh2+ {[%clk 0:01:47]} 29. Kxh2 {[%clk 0:01:42]}  Be5+ {[%clk 0:01:46]} 30. Kh1 {[%clk 0:01:32]}  Rg8 {[%clk 0:01:46]} 31. Qxh4+ {[%clk 0:01:30]}  Kg7 {[%clk 0:01:43]} 32. Rg1+ {[%clk 0:01:19]}  Kf8 {[%clk 0:01:35]} 33. Rb8+ {[%clk 0:01:05]}  Bxb8 {[%clk 0:01:32]} 34. Qf6+ {[%clk 0:01:05]}  Qf7 {[%clk 0:01:30]} 35. Qd8+ {[%clk 0:01:06]}  Qe8 {[%clk 0:01:27]} 36. Rxg8+ {[%clk 0:01:06]}  Kxg8 {[%clk 0:01:27]} 37. Qxe8+ {[%clk 0:01:06]}  Kg7 {[%clk 0:01:27]} 38. Qxb8 {[%clk 0:01:06]}  Be6 {[%clk 0:01:27]} 39. Qe5+ {[%clk 0:01:04]}  Kf7 {[%clk 0:01:26]} 40. exd5 {[%clk 0:01:04]}  Bxd5+ {[%clk 0:01:26]} 41. Qxd5+ {[%clk 0:01:02]}  cxd5 {[%clk 0:01:26]} 42. Bxa6 {[%clk 0:01:03]}  Ke6 {[%clk 0:01:25]} 43. Bd3 {[%clk 0:01:03]}  Kd7 {[%clk 0:01:26]} 44. Nd4 {[%clk 0:01:03]}  Kc7 {[%clk 0:01:24]} 45. b4 {[%clk 0:01:03]}  Kb7 {[%clk 0:01:25]} 46. b5 {[%clk 0:01:04]}  Ka7 {[%clk 0:01:24]} 47. c6 {[%clk 0:01:04]} 1-0


[Site "https://www.chess.com"]